bitfinex-derivatives/quotes_BTCF0:USTF0_20250320
["timestamp","ask_amount","ask_price","bid_price","bid_amount"]
[1742486814938,0.4351244,84617.0,84616.0,0.24627722]
[1742486815139,0.6581244,84617.0,84616.0,0.24627722]
[1742486815339,0.6581244,84617.0,84616.0,0.00017722]
[1742486815541,0.7904844,84617.0,84616.0,0.00017722]
[1742486815844,0.7304844,84617.0,84616.0,0.00017722]
[1742486816144,0.7904844,84617.0,84616.0,0.00017722]
[1742486816835,0.5981244,84617.0,84616.0,0.00017722]
[1742486817141,0.7304844,84617.0,84616.0,0.00017722]
[1742486817648,0.7904844,84617.0,84616.0,0.00017722]
[1742486818141,0.6581244,84617.0,84616.0,0.00017722]
[1742486818345,0.7904844,84617.0,84616.0,0.00017722]
[1742486821333,0.4042244,84617.0,84616.0,0.00017722]
[1742486821536,0.1212244,84617.0,84616.0,0.11840302]
[1742486821848,0.3135844,84617.0,84616.0,0.48127722]
[1742486822039,0.1212244,84617.0,84616.0,0.48127722]
[1742486822241,0.2535844,84617.0,84616.0,0.48127722]
[1742486822430,0.2835844,84617.0,84616.0,0.48127722]
[1742486822635,0.6441244,84617.0,84616.0,0.24777722]
[1742486822837,0.7764844,84617.0,84616.0,0.24777722]
[1742486823236,0.1182468,84601.0,84600.0,0.105]
[1742486823542,0.6714068,84601.0,84600.0,0.105]
[1742486823731,0.9169068,84601.0,84600.0,0.105]
[1742486824132,1.0169068,84601.0,84600.0,0.105]
[1742486824335,0.1182594,84592.0,84591.0,1e-07]
[1742486824639,0.4790594,84592.0,84591.0,1e-07]
[1742486824849,0.1172705,84584.0,84583.0,0.5875719]
[1742486825038,0.49316,84592.0,84583.0,0.5875719]
[1742486825039,0.1182662,84588.0,84587.0,0.118305]
[1742486825234,0.2506262,84588.0,84587.0,4e-05]
[1742486825435,0.1182662,84588.0,84587.0,4e-05]
[1742486825642,0.12823696,84588.0,84587.0,4e-05]
[1742486825845,0.48339696,84588.0,84587.0,4e-05]
[1742486826436,0.73379696,84588.0,84587.0,4e-05]
[1742486826636,0.1182705,84584.0,84583.0,0.4693]
[1742486827148,0.2506305,84584.0,84583.0,0.5875719]
[1742486827444,0.12823576,84588.0,84587.0,0.1182664]
[1742486827634,0.36297732,84592.0,84589.0,0.1182636]
[1742486827831,0.1182608,84591.0,84590.0,0.4952]
[1742486828041,0.36097732,84592.0,84591.0,0.1182608]
[1742486828242,0.00017732,84592.0,84591.0,0.6134608]
[1742486828544,0.1182594,84592.0,84591.0,0.4952]
[1742486828745,0.1182594,84592.0,84591.0,0.6134608]
[1742486828950,0.0591289,84594.0,84591.0,0.4952]
[1742486829246,0.1202594,84592.0,84591.0,0.4952]
[1742486829440,0.2526194,84592.0,84591.0,0.2592]
[1742486829641,0.1182677,84586.0,84585.0,0.2411]
[1742486830238,0.2506277,84586.0,84585.0,0.2411]
[1742486830438,0.1182691,84585.0,84584.0,0.00017732]
[1742486830740,0.5991691,84585.0,84584.0,0.00017732]
[1742486830937,0.6991691,84585.0,84584.0,0.00017732]
[1742486831150,0.6591691,84585.0,84584.0,0.00017732]
[1742486831539,0.1182789,84578.0,84577.0,0.2613]
[1742486831738,0.2506389,84578.0,84577.0,0.2613]
[1742486832436,0.5924789,84578.0,84577.0,0.2613]
[1742486832638,0.0591422,84575.0,84573.0,4e-05]
[1742486832952,0.5924845,84574.0,84573.0,0.2613]
[1742486833245,0.1182845,84574.0,84573.0,0.2613]
[1742486833444,0.1182845,84574.0,84561.0,4e-05]
[1742486833445,0.1183013,84562.0,84561.0,4e-05]
[1742486833638,0.1183139,84553.0,84552.0,0.2246]
[1742486833833,0.6714739,84553.0,84552.0,0.2246]
[1742486834051,0.6114739,84553.0,84552.0,0.2246]
[1742486834441,1.0976739,84553.0,84552.0,0.2246]
[1742486834755,1.31893269,84553.0,84512.0,0.0006]
[1742486835046,0.05,84528.0,84521.0,0.059179]
[1742486835246,0.3608,84529.0,84510.0,0.12884054]
[1742486835247,0.13236,84527.0,84517.0,0.2497]
[1742486835441,0.0591758,84526.0,84517.0,0.2497]
[1742486835639,0.13236,84527.0,84517.0,0.2497]
[1742486835840,0.13236,84527.0,84518.0,0.1183625]
[1742486835841,0.1183562,84523.0,84518.0,0.1183625]
[1742486836049,0.305176,84526.0,84519.0,0.1497]
[1742486836050,0.1183601,84520.0,84519.0,0.1497]
[1742486836251,0.1183601,84520.0,84510.0,4.001e-05]
[1742486836252,0.1183727,84511.0,84510.0,4.001e-05]
[1742486836447,0.49316,84511.0,84510.0,0.11841411]
[1742486836647,0.13236,84511.0,84510.0,0.11841411]
[1742486836849,0.001,84519.0,84518.0,0.1183629]
[1742486837035,0.3608,84521.0,84516.0,0.118365]
[1742486837235,0.3608,84521.0,84517.0,0.239]
[1742486837236,0.1183629,84518.0,84517.0,0.239]
[1742486837446,0.118362,84519.0,84517.0,0.239]
[1742486837853,0.3662629,84518.0,84517.0,0.239]
[1742486838152,0.2479,84518.0,84517.0,0.239]
[1742486838845,0.3662629,84518.0,84517.0,0.239]
[1742486839040,0.2479,84518.0,84517.0,0.239]
[1742486839643,0.1183727,84511.0,84510.0,4.001e-05]
[1742486839941,0.6115327,84511.0,84510.0,4.001e-05]
[1742486840136,0.3608,84511.0,84510.0,4.001e-05]
[1742486840348,0.3608,84511.0,84510.0,0.11841411]
[1742486840948,0.4791727,84511.0,84510.0,4.001e-05]
[1742486842051,0.3608,84511.0,84510.0,0.11841411]
[1742486842245,0.3628,84511.0,84510.0,0.11841411]
[1742486842444,0.3628,84511.0,84510.0,4.001e-05]
[1742486842652,0.4811727,84511.0,84510.0,4.001e-05]
[1742486842952,0.004,84511.0,84510.0,0.11841411]
[1742486843154,0.8429,84536.0,84527.0,0.1183503]
[1742486843453,0.1324,84540.0,84528.0,0.0591742]
[1742486843645,0.1183396,84535.0,84533.0,0.1183414]
[1742486843847,0.14257671,84540.0,84539.0,0.1183335]
[1742486844054,0.1183383,84536.0,84534.0,0.5950399]
[1742486844240,0.01017671,84540.0,84537.0,0.1183347]
[1742486844442,0.0591659,84541.0,84538.0,0.4767]
[1742486844645,0.01031752,84541.0,84538.0,0.4767]
[1742486844946,0.1183335,84540.0,84539.0,0.1183321]
[1742486845354,0.00017743,84543.0,84539.0,0.5950321]
[1742486845549,0.1233321,84541.0,84540.0,0.1183302]
[1742486845745,0.1233321,84541.0,84540.0,0.5950302]
[1742486846356,0.005,84541.0,84540.0,0.5950302]
[1742486846551,0.005,84541.0,84540.0,0.4767]
[1742486846749,0.1233307,84541.0,84540.0,0.5950321]
[1742486847149,0.1283307,84541.0,84540.0,0.5950321]
[1742486847349,0.1283307,84541.0,84540.0,0.4767]
[1742486847655,0.1233307,84541.0,84540.0,0.5950321]
[1742486847848,0.1233307,84541.0,84540.0,0.4767]
[1742486848250,0.1233307,84541.0,84529.0,0.245]
[1742486848459,0.1183461,84530.0,84529.0,0.245]
[1742486849049,0.01002902,84532.0,84529.0,0.245]
[1742486849360,0.1183397,84535.0,84534.0,0.1183405]
[1742486849553,0.118342,84533.0,84532.0,0.1183422]
[1742486849962,0.3608,84538.0,84530.0,0.5451729]
[1742486850260,0.01041843,84538.0,84537.0,0.1183363]
[1742486850564,0.001,84541.0,84540.0,0.1183321]
[1742486851264,0.00017743,84543.0,84542.0,0.1183293]
[1742486852060,0.00017743,84543.0,84542.0,0.12869019]
[1742486852350,0.00017743,84543.0,84537.0,0.1183351]
[1742486852351,0.1183346,84539.0,84537.0,0.1183351]
[1742486852555,0.0591668,84539.0,84535.0,0.1183387]
[1742486852749,0.001,84541.0,84536.0,0.1183371]
[1742486852750,0.1183329,84540.0,84536.0,0.1183371]
[1742486852957,0.01025609,84540.0,84535.0,4e-05]
[1742486853166,0.001,84541.0,84535.0,4e-05]
[1742486853353,0.1183343,84539.0,84537.0,0.118335]
[1742486853662,0.0601653,84541.0,84537.0,0.118335]
[1742486853663,0.059166,84540.0,84537.0,0.1183347]
[1742486853963,0.1183352,84538.0,84537.0,0.1183347]
[1742486854551,0.0591663,84540.0,84539.0,0.1183335]
[1742486854758,0.00417743,84543.0,84538.0,0.0591674]
[1742486854953,0.1774968,84541.0,84540.0,0.1183321]
[1742486855161,0.1183335,84539.0,84538.0,0.0591674]
[1742486855365,0.001,84540.0,84539.0,0.1183335]
[1742486855555,0.24837743,84543.0,84542.0,0.1183293]
[1742486855556,0.00017743,84543.0,84542.0,0.1183293]
[1742486856459,0.53303274,84578.0,84542.0,0.1915646]
[1742486856661,0.1183012,84563.0,84562.0,0.1182999]
[1742486856959,0.53303274,84578.0,84564.0,0.1182985]
[1742486857164,0.01008023,84575.0,84567.0,0.1182943]
[1742486857353,0.0591412,84576.0,84567.0,0.1182943]
[1742486857549,0.17223274,84578.0,84567.0,0.13295688]
[1742486857753,0.17223274,84578.0,84577.0,0.1182803]
[1742486857955,0.20662692,84588.0,84587.0,0.1182664]
[1742486858156,0.3608,84596.0,84595.0,0.1182552]
[1742486858360,0.36097743,84596.0,84595.0,0.1182552]
[1742486858665,0.2410403,84607.0,84598.0,0.118251]
[1742486858851,0.2410403,84607.0,84603.0,0.118244]
[1742486859049,0.2410403,84607.0,84599.0,0.3608]
[1742486859257,0.1182415,84605.0,84603.0,0.118244]
[1742486859463,0.32402692,84604.0,84603.0,0.118244]
[1742486860452,0.32402692,84604.0,84600.0,0.0591641]
[1742486860453,0.1182468,84601.0,84600.0,0.1774109]
[1742486860859,0.20578432,84604.0,84603.0,0.118244]
[1742486861254,0.32402692,84604.0,84603.0,0.118244]
[1742486861456,0.20578432,84604.0,84603.0,0.118244]
[1742486862163,0.24200031,84615.0,84614.0,0.1182286]
[1742486862354,0.2410403,84615.0,84614.0,0.4790286]
[1742486862562,0.09068294,84615.0,84614.0,0.4790286]
[1742486862751,0.0591049,84629.0,84628.0,0.1182067]
[1742486863361,0.4741,84631.0,84630.0,0.1182063]
[1742486863562,0.2319,84631.0,84630.0,0.1182063]
[1742486863865,0.1914193,84636.0,84635.0,0.1181993]
[1742486864064,0.4233193,84636.0,84635.0,0.1181993]
[1742486864451,0.36422,84636.0,84635.0,0.1181993]
[1742486864653,0.00017732,84637.0,84636.0,0.1181979]
[1742486864854,0.2974829,84659.0,84637.0,0.0590981]
[1742486865065,0.2324,84655.0,84643.0,0.3608]
[1742486865254,0.0590872,84653.0,84652.0,0.478974]
[1742486865657,0.2324,84653.0,84652.0,0.478974]
[1742486865966,0.3505741,84653.0,84652.0,0.118174]
[1742486866159,0.5889741,84653.0,84652.0,0.478974]
[1742486866461,0.4758,84653.0,84652.0,0.478974]
[1742486866661,0.005,84653.0,84652.0,0.478974]
[1742486867956,0.005,84653.0,84652.0,0.719574]
[1742486868263,0.01,84653.0,84652.0,0.719574]
[1742486870770,0.01,84653.0,84652.0,0.989574]
[1742486871766,0.01,84653.0,84652.0,0.719574]
[1742486871970,0.1281741,84653.0,84652.0,0.6014]
[1742486872168,0.1281741,84653.0,84652.0,0.7195755]
[1742486874358,0.1181755,84652.0,84651.0,4e-05]
[1742486874676,0.1181853,84645.0,84620.0,0.3608]
[1742486874970,0.1181979,84636.0,84623.0,4e-05]
[1742486875169,0.1182146,84624.0,84623.0,0.1182558]
[1742486875474,0.1182122,84626.0,84625.0,0.1182118]
[1742486875973,0.1182122,84626.0,84625.0,0.5966118]
[1742486876167,0.2287,84628.0,84627.0,0.1182105]
[1742486876470,0.3469091,84628.0,84627.0,0.4790105]
[1742486876869,0.1182089,84631.0,84630.0,0.118203]
[1742486877173,0.177312,84631.0,84630.0,0.118203]
[1742486877872,0.1322,84631.0,84630.0,0.118203]
[1742486878370,0.2504049,84631.0,84630.0,0.118203]
[1742486878673,0.00017721,84634.0,84633.0,0.1182021]
[1742486879260,0.00017721,84634.0,84633.0,0.3478021]
[1742486879973,0.00317721,84634.0,84633.0,0.3478021]
[1742486880167,0.00317721,84634.0,84633.0,0.5938021]
[1742486880368,0.00617721,84634.0,84633.0,0.5938021]
[1742486880766,0.0590818,84661.0,84633.0,0.5938021]
[1742486880974,0.00096001,84655.0,84648.0,0.3608]
[1742486881173,0.1181797,84649.0,84648.0,0.3608]
[1742486881367,0.1181797,84649.0,84648.0,0.4789811]
[1742486881674,0.3608,84653.0,84652.0,0.1181755]
[1742486881865,0.1322,84653.0,84652.0,0.1181755]
[1742486882071,0.2533741,84653.0,84652.0,0.1181755]
[1742486882376,0.2563741,84653.0,84652.0,0.1181755]
[1742486882571,0.1181755,84652.0,84651.0,0.246]
[1742486882776,0.1181797,84649.0,84648.0,0.01035072]
[1742486882977,0.1181797,84649.0,84648.0,0.1181811]
[1742486883576,0.1181839,84646.0,84645.0,4e-05]
[1742486883769,0.1181853,84645.0,84621.0,0.2392]
[1742486883969,0.1181853,84645.0,84620.0,0.41991]
[1742486883970,0.1182091,84628.0,84622.0,0.2257]
[1742486884163,0.118216,84623.0,84622.0,0.3439167]
[1742486884572,0.3437115,84627.0,84624.0,0.0591071]
[1742486884773,0.2255,84627.0,84626.0,0.1182118]
[1742486885378,0.3437105,84627.0,84626.0,0.1182118]
[1742486885577,0.1182118,84626.0,84625.0,0.3439118]
[1742486886074,0.3610118,84626.0,84625.0,0.3439118]
[1742486886276,0.2255,84627.0,84625.0,0.2257]
[1742486886277,0.001,84627.0,84625.0,0.2257]
[1742486886471,0.13216,84626.0,84625.0,0.3439132]
[1742486886870,0.001,84627.0,84626.0,0.1182118]
[1742486887273,0.001,84627.0,84626.0,0.6336118]
[1742486888177,0.00017721,84634.0,84633.0,0.1182021]
[1742486888369,0.00017721,84634.0,84633.0,0.3636021]
[1742486888771,0.11837791,84634.0,84633.0,0.3636021]
[1742486889277,0.36047791,84634.0,84633.0,0.37366372]
[1742486889575,0.24227721,84634.0,84633.0,0.37366372]
[1742486890182,0.24427721,84634.0,84633.0,0.37366372]
[1742486890778,0.24427721,84634.0,84633.0,0.38854867]
[1742486890978,0.1182021,84633.0,84632.0,4e-05]
[1742486891289,0.118223,84618.0,84608.0,0.0591179]
[1742486891475,0.0591195,84607.0,84603.0,0.35085299]
[1742486891670,0.1182426,84604.0,84603.0,0.46849419]
[1742486892578,0.72335981,84606.0,84605.0,0.1182412]
[1742486892885,0.7223998,84606.0,84605.0,0.1182412]
[1742486893079,0.2421,84606.0,84605.0,0.1182412]
[1742486893267,0.00017721,84612.0,84604.0,0.2234]
[1742486893268,0.00017721,84612.0,84611.0,0.1182328]
[1742486893475,0.00017721,84612.0,84611.0,0.4790328]
[1742486893476,0.13233721,84612.0,84611.0,0.4790328]
[1742486893676,0.25056861,84612.0,84611.0,0.4790328]
[1742486894077,0.47076861,84612.0,84611.0,0.4790328]
[1742486894282,0.35253721,84612.0,84611.0,0.4790328]
[1742486894474,0.47076861,84612.0,84611.0,0.4790328]
[1742486894875,0.13233721,84612.0,84611.0,0.48937767]
[1742486895282,0.00017721,84612.0,84611.0,0.4790328]
[1742486895584,0.12040861,84612.0,84611.0,0.4790328]
[1742486895783,0.12240861,84612.0,84611.0,0.4790328]
[1742486895988,0.12240861,84612.0,84611.0,0.49368802]
[1742486896288,0.12240861,84612.0,84611.0,0.37448802]
[1742486896495,0.12240861,84612.0,84611.0,0.38452899]
[1742486896793,0.18240861,84612.0,84611.0,0.01465522]
[1742486897085,0.63060861,84612.0,84611.0,0.01465522]
[1742486897293,0.57060861,84612.0,84611.0,0.1182328]
[1742486897492,0.45237721,84612.0,84611.0,0.1182328]
[1742486897987,0.36093721,84612.0,84611.0,0.5520328]
[1742486898189,0.47916861,84612.0,84611.0,0.5520328]
[1742486898380,0.47916861,84612.0,84611.0,0.56669123]
[1742486898788,0.47916861,84612.0,84611.0,0.01465843]
[1742486898977,0.47916861,84612.0,84611.0,0.13289123]
[1742486899381,0.34700861,84612.0,84611.0,0.13289123]
[1742486899689,0.36089721,84612.0,84611.0,0.35089123]
[1742486899882,0.22877721,84612.0,84611.0,0.56859123]
[1742486900086,0.47912861,84612.0,84611.0,0.01465843]
[1742486900388,0.47912861,84612.0,84610.0,0.3608]
[1742486900389,0.1182328,84611.0,84610.0,0.3608]
[1742486900592,0.3363328,84611.0,84610.0,0.4790342]
[1742486900896,0.5729328,84611.0,84610.0,0.1182342]
[1742486901091,0.2366,84611.0,84610.0,0.1182342]
[1742486901291,0.2366,84611.0,84610.0,0.4790342]
[1742486901496,0.2366,84611.0,84610.0,0.9481342]
[1742486901683,0.36872,84611.0,84610.0,0.5873342]
[1742486901880,0.37072,84611.0,84610.0,0.5873342]
[1742486902385,0.37272,84611.0,84610.0,0.5873342]
[1742486902687,0.004,84611.0,84610.0,0.9481342]
[1742486904193,0.004,84611.0,84610.0,1.1781342]
[1742486904702,0.00348558,84611.0,84610.0,1.2331071]
[1742486905086,0.00348558,84611.0,84610.0,1.23303552]
[1742486905992,0.002,84611.0,84610.0,1.36515552]
[1742486906194,0.00017721,84612.0,84611.0,0.1182328]
[1742486906388,0.1181954,84638.0,84637.0,0.0590982]
[1742486906699,0.3384954,84638.0,84637.0,0.4198982]
[1742486907199,0.4706154,84638.0,84637.0,0.4198982]
[1742486908194,0.3384954,84638.0,84637.0,0.4198982]
[1742486908393,0.35242,84638.0,84637.0,0.4198982]
[1742486908898,0.2263,84638.0,84637.0,0.8592982]
[1742486909195,0.2263,84638.0,84637.0,0.0590982]
[1742486909196,0.3444951,84638.0,84637.0,0.0590982]
[1742486909399,0.1181993,84635.0,84634.0,0.0591003]
[1742486909699,0.1182063,84630.0,84629.0,0.47918131]
[1742486909893,0.2503263,84630.0,84629.0,0.47918131]
[1742486910292,0.5778063,84630.0,84629.0,0.47918131]
[1742486910499,0.7098863,84630.0,84629.0,0.00017721]
[1742486910800,0.7098863,84630.0,84629.0,0.11838491]
[1742486910992,0.5778063,84630.0,84629.0,0.11838491]
[1742486911191,0.7098863,84630.0,84629.0,0.11838491]
[1742486911794,0.7098863,84630.0,84629.0,0.00017721]
[1742486911994,0.7098863,84630.0,84629.0,0.11838491]
[1742486912397,0.2313,84630.0,84629.0,0.11838491]
[1742486912594,0.3525063,84630.0,84629.0,0.11838491]
[1742486912785,0.2343,84630.0,84629.0,0.33998491]
[1742486912989,0.36638,84630.0,84629.0,0.56798491]
[1742486913398,0.2343,84630.0,84629.0,0.56798491]
[1742486913699,0.006,84630.0,84629.0,0.56798491]
[1742486914191,0.003,84630.0,84629.0,0.56798491]
[1742486914397,0.006,84630.0,84629.0,0.56798491]
[1742486914998,0.003,84630.0,84629.0,0.56798491]
[1742486915204,0.006,84630.0,84629.0,0.56798491]
[1742486915602,0.1242063,84630.0,84629.0,0.56798491]
[1742486915803,0.006,84630.0,84629.0,0.56798491]
[1742486916403,0.1212063,84630.0,84629.0,0.56798491]
[1742486916603,0.1242063,84630.0,84629.0,0.56798491]
[1742486916800,0.006,84630.0,84629.0,0.56798491]
[1742486917896,0.1242063,84630.0,84629.0,0.56798491]
[1742486918311,0.3479063,84630.0,84629.0,0.56798491]
[1742486918602,0.5682063,84630.0,84629.0,0.33998491]
[1742486918805,0.3479063,84630.0,84629.0,0.33998491]
[1742486919191,0.4079063,84630.0,84629.0,0.00017721]
[1742486919397,0.5399463,84630.0,84629.0,0.00017721]
[1742486919596,0.8687063,84630.0,84629.0,0.00017721]
[1742486920401,1.1007463,84630.0,84629.0,0.00017721]
[1742486920603,0.9687063,84630.0,84629.0,0.00017721]
[1742486920803,0.8687063,84630.0,84629.0,0.00017721]
[1742486921013,0.118237,84608.0,84599.0,0.3608]
[1742486921194,0.1182482,84600.0,84599.0,0.3608]
[1742486921398,0.3102882,84600.0,84599.0,0.3608]
[1742486922010,0.3102882,84600.0,84599.0,0.4790496]
[1742486922011,0.4693,84600.0,84599.0,0.4790496]
[1742486922310,0.36097721,84608.0,84607.0,0.1182384]
[1742486922515,0.00017721,84608.0,84607.0,0.7590384]
[1742486922705,0.01079547,84616.0,84615.0,0.1182272]
[1742486923007,0.2354,84620.0,84619.0,0.1182216]
[1742486923211,0.13204,84621.0,84620.0,0.1182202]
[1742486923506,0.0590995,84636.0,84620.0,0.1182202]
[1742486923507,0.3536077,84629.0,84628.0,0.1182091]
[1742486923695,0.7058477,84629.0,84628.0,0.1182091]
[1742486924110,0.2354,84629.0,84628.0,0.4790091]
[1742486924301,0.13221721,84637.0,84636.0,0.1181979]
[1742486924504,0.25041371,84637.0,84636.0,0.4789979]
[1742486924914,0.13221721,84637.0,84636.0,0.4789979]
[1742486925106,0.00017721,84637.0,84636.0,0.4789979]
[1742486925610,0.00017721,84637.0,84636.0,0.7024979]
[1742486926003,0.00017721,84637.0,84636.0,0.71326731]
[1742486926404,0.11837371,84637.0,84636.0,0.71326731]
[1742486926818,0.00017721,84637.0,84636.0,0.71326731]
[1742486927401,0.00417721,84637.0,84636.0,0.71326731]
[1742486927908,0.00417721,84637.0,84636.0,0.7222213]
[1742486927909,0.00817721,84637.0,84636.0,0.7222213]
[1742486928919,0.12637371,84637.0,84636.0,0.72192198]
[1742486929214,0.33777371,84637.0,84636.0,0.71145189]
[1742486929405,0.33777371,84637.0,84636.0,0.48795189]
[1742486929606,0.33777371,84637.0,84636.0,0.4789979]
[1742486930305,0.32977371,84637.0,84636.0,0.8860979]
[1742486930507,0.33377371,84637.0,84636.0,0.89648402]
[1742486931210,0.33277371,84637.0,84636.0,0.89648402]
[1742486931410,0.21357721,84637.0,84636.0,0.89648402]
[1742486932012,0.00217721,84637.0,84636.0,0.89648402]
[1742486932815,0.12037371,84637.0,84636.0,0.89648402]
[1742486933311,0.00217721,84637.0,84636.0,0.89648402]
[1742486934107,0.12037371,84637.0,84636.0,0.6793979]
[1742486934312,0.00217721,84637.0,84636.0,0.6793979]
[1742486934612,0.00217721,84637.0,84636.0,0.69023118]
[1742486934819,0.21947721,84637.0,84636.0,0.69023118]
[1742486935502,0.33767371,84637.0,84636.0,0.69023118]
[1742486935701,0.21947721,84637.0,84636.0,0.69023118]
[1742486937316,0.33767371,84637.0,84636.0,0.69023118]
[1742486937514,0.33667371,84637.0,84636.0,0.69023118]
[1742486937714,0.33767371,84637.0,84636.0,0.90543118]
[1742486937917,0.00217721,84637.0,84636.0,0.90543118]
[1742486938316,0.02,84640.0,84639.0,0.1181937]
[1742486938520,0.02,84640.0,84639.0,0.7589937]
[1742486938820,0.02,84640.0,84639.0,1.1913937]
[1742486939714,0.17204702,84648.0,84647.0,0.1181825]
[1742486939917,0.17204702,84648.0,84647.0,0.7589825]
[1742486940119,0.17204702,84648.0,84647.0,0.9761825]
[1742486940322,0.17204702,84648.0,84647.0,0.99133627]
[1742486940621,1e-08,84648.0,84647.0,1.14133627]
[1742486941617,0.00300001,84648.0,84647.0,1.14133627]
[1742486942024,1e-08,84648.0,84647.0,1.14133627]
[1742486942319,0.23798313,84666.0,84665.0,0.1181574]
[1742486942523,0.20631969,84676.0,84675.0,0.1181434]
[1742486942715,0.20631969,84676.0,84675.0,0.4789434]
[1742486942915,0.32446169,84676.0,84675.0,0.3608]
[1742486943420,0.75926169,84676.0,84675.0,0.3608]
[1742486943612,0.81926169,84676.0,84675.0,0.3608]
[1742486943808,0.1181658,84659.0,84658.0,0.3608]
[1742486944010,0.1181658,84659.0,84647.0,0.002]
[1742486944011,0.1181672,84658.0,84657.0,1e-08]
[1742486944213,0.1181811,84648.0,84647.0,0.002]
[1742486944418,0.1181825,84647.0,84646.0,0.3608]
[1742486944620,0.1181825,84647.0,84635.0,4e-05]
[1742486944621,0.1181979,84636.0,84635.0,4e-05]
[1742486945121,0.1182118,84626.0,84625.0,0.28219432]
[1742486945320,0.1182118,84626.0,84625.0,0.29691416]
[1742486945321,0.1782118,84626.0,84625.0,0.29691416]
[1742486945522,0.1182174,84622.0,84621.0,1e-08]
[1742486945721,0.13188,84622.0,84621.0,1e-08]
[1742486945919,0.2500974,84622.0,84621.0,1e-08]
[1742486946118,0.1182174,84622.0,84621.0,0.19970001]
[1742486946320,0.3196174,84622.0,84621.0,1e-08]
[1742486946623,0.3796174,84622.0,84621.0,1e-08]
[1742486946921,0.1182398,84606.0,84600.0,0.42109657]
[1742486947134,0.1182398,84606.0,84600.0,0.64169657]
[1742486947313,0.1182398,84606.0,84601.0,0.1182463]
[1742486947514,0.1290002,84606.0,84602.0,0.1182448]
[1742486947726,0.5452002,84606.0,84602.0,0.1182448]
[1742486948227,0.5452002,84606.0,84605.0,0.35425299]
[1742486948712,0.4162,84606.0,84605.0,0.46849419]
[1742486949028,0.2161,84606.0,84605.0,0.46849419]
[1742486949324,0.00017721,84614.0,84613.0,0.11823]
[1742486949523,0.11840581,84614.0,84613.0,0.3608]
[1742486949720,0.1182384,84607.0,84606.0,0.338839]
[1742486950023,0.2501584,84607.0,84606.0,0.4790398]
[1742486950219,0.2501584,84607.0,84606.0,0.1182398]
[1742486950523,0.1182398,84606.0,84605.0,0.005]
[1742486950723,0.1182412,84605.0,84604.0,0.2131]
[1742486951029,0.118251,84598.0,84597.0,0.36097721]
[1742486951227,0.178251,84598.0,84597.0,0.00017721]
[1742486951426,0.1182636,84589.0,84588.0,4e-05]
[1742486951732,0.118265,84588.0,84584.0,0.0591347]
[1742486952031,0.1182691,84585.0,84584.0,0.0591347]
[1742486952513,0.1182691,84585.0,84584.0,0.4199347]
[1742486952714,0.0591338,84587.0,84584.0,0.5382042]
[1742486952920,0.3072678,84586.0,84585.0,0.1182691]
[1742486953227,0.1182328,84611.0,84610.0,0.1182342]
[1742486953416,0.0591216,84608.0,84607.0,0.1182365]
[1742486953621,0.189,84610.0,84609.0,0.1182356]
[1742486954021,0.0591055,84627.0,84626.0,0.1182091]
[1742486954234,0.4981996,84627.0,84626.0,0.1182091]
[1742486954527,0.1182146,84625.0,84624.0,0.1182137]
[1742486954727,0.3908101,84627.0,84625.0,0.1182132]
[1742486954728,0.2201,84626.0,84625.0,0.1182132]
[1742486955231,0.1182146,84624.0,84623.0,0.479016]
[1742486955531,0.1182174,84622.0,84621.0,0.1182182]
[1742486956319,0.3376174,84622.0,84621.0,0.1182182]
[1742486957020,0.2194,84622.0,84621.0,0.48808149]
[1742486957223,0.005,84625.0,84624.0,0.1182146]
[1742486957416,0.00017732,84635.0,84624.0,0.1182146]
[1742486957417,0.2194,84634.0,84633.0,0.1182021]
[1742486957727,0.2194,84634.0,84633.0,0.4790021]
[1742486958116,0.2194,84634.0,84633.0,0.8825021]
[1742486958320,0.00017732,84635.0,84634.0,0.1182007]
[1742486958516,0.21957732,84635.0,84634.0,0.2082007]
[1742486958724,0.21957732,84635.0,84634.0,0.9407007]
[1742486958922,0.00017732,84635.0,84634.0,0.9407007]
[1742486959221,0.1752,84643.0,84642.0,0.1181895]
[1742486959424,0.1752,84643.0,84642.0,0.4789895]
[1742486960029,0.1752,84643.0,84642.0,0.8438895]
[1742486960421,0.1752,84643.0,84642.0,0.85466473]
[1742486960620,0.00017721,84651.0,84650.0,0.1181783]
[1742486960821,0.00017721,84651.0,84650.0,0.4789783]
[1742486960822,0.11835411,84651.0,84650.0,0.4789783]
[1742486961031,0.11835411,84651.0,84650.0,0.6588783]
[1742486961622,0.29985411,84651.0,84650.0,0.6588783]
[1742486962136,0.30485411,84651.0,84650.0,0.6598783]
[1742486962333,0.00517721,84651.0,84650.0,0.6598783]
[1742486962533,0.00517721,84651.0,84650.0,0.9098783]
[1742486962729,1e-08,84651.0,84650.0,1.0417583]
[1742486963529,1e-08,84651.0,84650.0,0.9098783]
[1742486963739,0.00500001,84651.0,84650.0,1.0427183]
[1742486963926,0.12317691,84651.0,84650.0,1.0427183]
[1742486964124,0.12317691,84651.0,84650.0,0.6608783]
[1742486964427,0.29657691,84651.0,84650.0,0.6608783]
[1742486964625,0.29657691,84651.0,84650.0,0.5427]
[1742486964939,0.29657691,84651.0,84650.0,0.3628]
[1742486965125,0.29657691,84651.0,84650.0,0.4809783]
[1742486965533,0.65737691,84651.0,84648.0,4e-05]
[1742486965838,0.1772877,84642.0,84639.0,0.3592829]
[1742486966026,0.1772877,84642.0,84641.0,0.1181902]
[1742486966227,0.0590954,84642.0,84641.0,0.1181902]
[1742486968025,0.0640954,84642.0,84641.0,0.1191902]
[1742486968220,0.0660954,84642.0,84641.0,0.1191902]
[1742486969028,0.2409954,84642.0,84641.0,0.001]
[1742486969232,0.3009954,84642.0,84641.0,0.001]
[1742486969436,0.1181923,84640.0,84639.0,4e-05]
[1742486969737,0.3100323,84640.0,84639.0,4e-05]
[1742486970034,0.1772982,84637.0,84636.0,0.1181975]
[1742486970236,0.5380982,84637.0,84636.0,0.1181975]
[1742486970434,0.7129982,84637.0,84636.0,0.1181975]
[1742486970827,0.5947989,84637.0,84636.0,0.1181975]
[1742486971223,0.3608,84637.0,84636.0,0.1181975]
[1742486971423,0.3608,84637.0,84636.0,0.2961975]
[1742486971633,0.002,84637.0,84636.0,0.2961975]
[1742486971832,0.006,84637.0,84636.0,0.2961975]
[1742486972231,0.006,84637.0,84636.0,0.57701806]
[1742486972632,0.006,84637.0,84636.0,0.93781806]
[1742486972836,0.1378,84637.0,84634.0,0.00017721]
[1742486973141,0.1181993,84635.0,84634.0,0.00017721]
[1742486973326,0.118216,84623.0,84622.0,0.178]
[1742486973527,0.1182286,84615.0,84614.0,0.4772276]
[1742486974837,0.1182286,84615.0,84614.0,0.4792276]
[1742486975441,0.1182286,84615.0,84614.0,0.48805474]